Workbook

Sheet Presupuesto Aprobado-Ejec
A3: Servicio Nacional de Salud
A4: Servicio Regional de Salud Norcentral
A5: Año 2023
A6: Ejecución de Gasto y Aplicaciones financieras
A7: En RD$
A9: DETALLE | B9: Presupuesto Aprobado | C9: Presupuesto Modificado | D9: Gasto devengado
D10: Enero | E10: Febrero | F10: Marzo | G10: Abril | H10: Mayo | I10: Junio | J10: Julio | K10: Agosto | L10: Septiembre | M10: Octubre | N10: Noviembre | O10: Diciembre | P10: Total
A11: 2 - GASTOS
A12: 2.1 - REMUNERACIONES Y CONTRIBUCIONES | B12: =+B13+B14+B15+B16+B17 -> 47,991,000.00 | C12: =+C13+C14+C15+C16+C17 -> 0 | D12: =+D13+D14+D16+D15+D17 -> 2,528,034.44 | E12: =+E13+E14+E16+E15+E17 -> 0.00 | F12: =+F13+F14+F16+F15+F17 -> 0.00 | G12: =+G13+G14+G16+G15+G17 -> 0.00 | H12: =+H13+H14+H16+H15+H17 -> 0.00 | I12: =+I13+I14+I16+I15+I17 -> 0.00 | J12: 0.00 | K12: =+K13+K14+K16+K15+K17 -> 0.00 | L12: =+L13+L14+L16+L15+L17 -> 0.00 | M12: 0.00 | N12: =+N13+N14+N16+N15+N17 -> 0.00 | O12: 0.00 | P12: =+D12+E12+F12+G12+H12+I12+J12+K12+L12+M12+N12+O12 -> 2,528,034.44
A13: 2.1.1 - REMUNERACIONES | B13: 21,776,000.00 | C13: 0.00 | D13: 1,038,726.39 | P13: =+D13+E13+F13+G13+H13+I13+J13+K13+L13+M13+N13+O13 -> 1,038,726.39
A14: 2.1.2 - SOBRESUELDOS | B14: 22,480,000.00 | C14: 0.00 | D14: 1,209,128.75 | P14: =+D14+E14+F14+G14+H14+I14+J14+K14+L14+M14+N14+O14 -> 1,209,128.75
A15: 2.1.3 - DIETAS Y GASTOS DE REPRESENTACIÓN | B15: 0 | C15: 0.00 | D15: 0.00 | P15: 0.00
A16: 2.1.4 - GRATIFICACIONES Y BONIFICACIONES | B16: 0 | C16: 0.00 | D16: 0.00 | P16: 0.00
A17: 2.1.5 - CONTRIBUCIONES A LA SEGURIDAD SOCIAL | B17: =1890000+1650000+195000 -> 3,735,000.00 | C17: 0.00 | D17: 280,179.30 | P17: 280,179.30
A18: 2.2 - CONTRATACIÓN DE SERVICIOS | B18: =+B19+B20+B21+B22+B23+B24+B25+B26+B27 -> 36,787,262.38 | C18: =+C19+C20+C21+C22+C23+C24+C25+C26+C27 -> 0 | D18: 1,623,964.06 | E18: 0.00 | F18: 0.00 | G18: 0.00 | H18: 0.00 | I18: 0.00 | J18: =+J19+J20+J21+J22+J23+J24+J25+J26+J27 -> 0.00 | K18: 0.00 | L18: =+L19+L20+L21+L22+L23+L24+L25+L26+L27 -> 0.00 | M18: 0.00 | N18: =+N19+N20+N21+N22+N23+N24+N25+N26+N27 -> 0.00 | O18: 0.00 | P18: =+D18+E18+F18+G18+H18+I18+J18+K18+L18+M18+N18+O18 -> 1,623,964.06
A19: 2.2.1 - SERVICIOS BÁSICOS | B19: 7,691,000.00 | C19: 0.00 | D19: 693,271.14 | P19: 693,271.14
A20: 2.2.2 - PUBLICIDAD, IMPRESIÓN Y ENCUADERNACIÓN | B20: 2,626,365.00 | C20: 0.00 | D20: 0.00 | P20: 0.00
A21: 2.2.3 - VIÁTICOS | B21: 2,280,000.00 | C21: 0.00 | D21: 0.00 | P21: 0.00
A22: 2.2.4 - TRANSPORTE Y ALMACENAJE | B22: 105,600.00 | C22: 0.00 | D22: 684,642.67 | P22: 684,642.67
A23: 2.2.5 - ALQUILERES Y RENTAS | B23: 9,323,724.00 | C23: 0.00 | D23: 0.00 | P23: 0.00
A24: 2.2.6 - SEGUROS | B24: 560,000.00 | C24: 0.00 | D24: 0.00 | P24: 0.00
A25: 2.2.7 - SERVICIOS DE CONSERVACIÓN, REPARACIONES MENORES E INSTALACIONES TEMPORALES | B25: 9,858,183.00 | C25: 0.00 | D25: 19,045.20 | P25: 19,045.20
A26: 2.2.8 - OTROS SERVICIOS NO INCLUIDOS EN CONCEPTOS ANTERIORES | B26: 882,390.38 | C26: 0.00 | D26: =20636.07+72118.97 -> 92,755.04 | P26: 92,755.04
A27: 2.2.9 - OTRAS CONTRATACIONES DE SERVICIOS | B27: 3,460,000.00 | C27: 0.00 | D27: 134,250.01 | P27: 134,250.01
A28: 2.3 - MATERIALES Y SUMINISTROS | B28: =+B29+B30+B31+B32+B33+B34+B35+B36+B37 -> 18,547,262.31 | C28: =+C29+C30+C31+C32+C33+C34+C35+C36+C37 -> 0 | D28: =+D29+D30+D31+D32+D33+D34+D35+D36+D37 -> 1,144,186.26 | E28: 0.00 | F28: 0.00 | G28: 0.00 | H28: 0.00 | I28: 0.00 | J28: 0.00 | K28: 0.00 | L28: =+L29+L30+L31+L32+L33+L34+L35+L36+L37 -> 0.00 | M28: 0.00 | N28: =+N29+N30+N31+N32+N33+N34+N35+N36+N37 -> 0.00 | O28: 0.00 | P28: 1,144,186.26
A29: 2.3.1 - ALIMENTOS Y PRODUCTOS AGROFORESTALES | B29: 313,500.00 | C29: 0.00 | D29: 0.00 | P29: 0.00
A30: 2.3.2 - TEXTILES Y VESTUARIOS | B30: 55,000.00 | C30: 0.00 | D30: 8,295.40 | P30: 8,295.40
A31: 2.3.3 - PRODUCTOS DE PAPEL, CARTÓN E IMPRESOS | B31: 124,245.15 | C31: 0.00 | D31: 3,450.00 | P31: =+D31+E31+F31+G31+H31+I31+J31+K31+L31+M31+N31+O31 -> 3,450.00
A32: 2.3.4 - PRODUCTOS FARMACÉUTICOS | B32: 475,000.00 | C32: 0.00 | D32: 0.00 | P32: 0.00
A33: 2.3.5 - PRODUCTOS DE CUERO, CAUCHO Y PLÁSTICO | B33: 113,105.50 | C33: 0.00 | D33: 0.00 | P33: 0.00
A34: 2.3.6 - PRODUCTOS DE MINERALES, METÁLICOS Y NO METÁLICOS | B34: 227,808.03 | C34: 0.00 | D34: 0.00 | P34: 0.00
A35: 2.3.7 - COMBUSTIBLES, LUBRICANTES, PRODUCTOS QUÍMICOS Y CONEXOS | B35: 11,700,000.00 | C35: 0.00 | D35: 389,968.86 | P35: 389,968.86
A36: 2.3.8 - GASTOS QUE SE ASIGNARÁN DURANTE EL EJERCICIO (ART. 32 Y 33 LEY 423-06) | B36: 0 | C36: 0.00 | D36: 0.00 | P36: 0.00
A37: 2.3.9 - PRODUCTOS Y ÚTILES VARIOS | B37: 5,538,603.63 | C37: 0.00 | D37: =71623.4+670848.6 -> 742,472.00 | P37: 742,472.00
A38: 2.4 - TRANSFERENCIAS CORRIENTES | B38: =+B39+B40+B41+B42+B43+B44+B45+B45 -> 0 | C38: =+C39+C40+C41+C42+C43+C44+C45+C45 -> 0 | D38: =+D39+D40+D41+D42+D43+D44+D45+D45 -> 0.00 | E38: 0.00 | F38: 0.00 | G38: 0.00 | H38: 0.00 | I38: 0.00 | J38: 0.00 | K38: 0.00 | L38: =+L39+L40+L41+L42+L43+L44+L45+L45 -> 0.00 | M38: 0.00 | N38: =+N39+N40+N41+N42+N43+N44+N45+N45 -> 0.00 | O38: 0.00 | P38: =+D38+E38+F38+G38+H38+I38+J38+K38+L38+M38+N38+O38 -> 0.00
A39: 2.4.1 - TRANSFERENCIAS CORRIENTES AL SECTOR PRIVADO | B39: 0 | C39: 0.00 | D39: 0 | E39: 0 | F39: 0 | G39: 0 | H39: 0 | I39: 0 | J39: 0 | K39: 0 | L39: 0 | M39: 0 | N39: 0 | O39: 0.00 | P39: 0.00
A40: 2.4.2 - TRANSFERENCIAS CORRIENTES AL GOBIERNO GENERAL NACIONAL | B40: 0 | C40: 0.00 | D40: 0 | E40: 0 | F40: 0 | G40: 0 | H40: 0 | I40: 0 | J40: 0 | K40: 0 | L40: 0 | M40: 0 | N40: 0 | O40: 0.00 | P40: 0.00
A41: 2.4.3 - TRANSFERENCIAS CORRIENTES A GOBIERNOS GENERALES LOCALES | B41: 0 | C41: 0.00 | D41: 0 | E41: 0 | F41: 0 | G41: 0 | H41: 0 | I41: 0 | J41: 0 | K41: 0 | L41: 0 | M41: 0 | N41: 0 | O41: 0.00 | P41: 0.00
A42: 2.4.4 - TRANSFERENCIAS CORRIENTES A EMPRESAS PÚBLICAS NO FINANCIERAS | B42: 0 | C42: 0.00 | D42: 0 | E42: 0 | F42: 0 | G42: 0 | H42: 0 | I42: 0 | J42: 0 | K42: 0 | L42: 0 | M42: 0 | N42: 0 | O42: 0.00 | P42: 0.00
A43: 2.4.5 - TRANSFERENCIAS CORRIENTES A INSTITUCIONES PÚBLICAS FINANCIERAS | B43: 0 | C43: 0.00 | D43: 0 | E43: 0 | F43: 0 | G43: 0 | H43: 0 | I43: 0 | J43: 0 | K43: 0 | L43: 0 | M43: 0 | N43: 0 | O43: 0.00 | P43: 0.00
A44: 2.4.7 - TRANSFERENCIAS CORRIENTES AL SECTOR EXTERNO | B44: 0 | C44: 0.00 | D44: 0 | E44: 0 | F44: 0 | G44: 0 | H44: 0 | I44: 0 | J44: 0 | K44: 0 | L44: 0 | M44: 0 | N44: 0 | O44: 0.00 | P44: 0.00
A45: 2.4.9 - TRANSFERENCIAS CORRIENTES A OTRAS INSTITUCIONES PÚBLICAS | B45: 0 | C45: 0.00 | D45: 0 | E45: 0 | F45: 0 | G45: 0 | H45: 0 | I45: 0 | J45: 0 | K45: 0 | L45: 0 | M45: 0 | N45: 0 | O45: 0.00 | P45: 0.00
A46: 2.5 - TRANSFERENCIAS DE CAPITAL | B46: 0 | C46: 0 | D46: 0.00 | E46: 0.00 | F46: 0.00 | G46: 0.00 | H46: 0.00 | I46: 0.00 | J46: 0.00 | K46: 0.00 | L46: 0.00 | M46: 0.00 | N46: =+N47+N48+N49+N50+N51+N52+N53 -> 0.00 | O46: 0.00 | P46: =+D46+E46+F46+G46+H46+I46+J46+K46+L46+M46+N46+O46 -> 0.00
A47: 2.5.1 - TRANSFERENCIAS DE CAPITAL AL SECTOR PRIVADO | B47: 0 | C47: 0.00 | D47: 0 | E47: 0 | F47: 0 | G47: 0 | H47: 0 | I47: 0 | J47: 0 | K47: 0 | L47: 0 | M47: 0 | N47: 0 | O47: 0.00 | P47: =+D47+E47+F47+G47+H47+I47+J47+K47+L47+M47+N47+O47 -> 0.00
A48: 2.5.2 - TRANSFERENCIAS DE CAPITAL AL GOBIERNO GENERAL NACIONAL | B48: 0 | C48: 0.00 | D48: 0 | E48: 0 | F48: 0 | G48: 0 | H48: 0 | I48: 0 | J48: 0 | K48: 0 | L48: 0 | M48: 0 | N48: 0 | O48: 0.00 | P48: 0.00
A49: 2.5.3 - TRANSFERENCIAS DE CAPITAL A GOBIERNOS GENERALES LOCALES | B49: 0 | C49: 0.00 | D49: 0 | E49: 0 | F49: 0 | G49: 0 | H49: 0 | I49: 0 | J49: 0 | K49: 0 | L49: 0 | M49: 0 | N49: 0 | O49: 0.00 | P49: 0.00
A50: 2.5.4 - TRANSFERENCIAS DE CAPITAL A EMPRESAS PÚBLICAS NO FINANCIERAS | B50: 0 | C50: 0.00 | D50: 0 | E50: 0 | F50: 0 | G50: 0 | H50: 0 | I50: 0 | J50: 0 | K50: 0 | L50: 0 | M50: 0 | N50: 0 | O50: 0.00 | P50: 0.00
A51: 2.5.5 - TRANSFERENCIAS DE CAPITAL A INSTITUCIONES PÚBLICAS FINANCIERAS | B51: 0 | C51: 0.00 | D51: 0 | E51: 0 | F51: 0 | G51: 0 | H51: 0 | I51: 0 | J51: 0 | K51: 0 | L51: 0 | M51: 0 | N51: 0 | O51: 0.00 | P51: 0.00
A52: 2.5.6 - TRANSFERENCIAS DE CAPITAL AL SECTOR EXTERNO | B52: 0 | C52: 0.00 | D52: 0 | E52: 0 | F52: 0 | G52: 0 | H52: 0 | I52: 0 | J52: 0 | K52: 0 | L52: 0 | M52: 0 | N52: 0 | O52: 0.00 | P52: 0.00
A53: 2.5.9 - TRANSFERENCIAS DE CAPITAL A OTRAS INSTITUCIONES PÚBLICAS | B53: 0 | C53: 0.00 | D53: 0 | E53: 0 | F53: 0 | G53: 0 | H53: 0 | I53: 0 | J53: 0 | K53: 0 | L53: 0 | M53: 0 | N53: 0 | O53: 0.00 | P53: 0.00
A54: 2.6 - BIENES MUEBLES, INMUEBLES E INTANGIBLES | B54: =+B55+B56+B57+B58+B59+B60+B61+B62+B63 -> 20,889,115.89 | C54: =+C55+C56+C57+C58+C59+C60+C61+C62+C63 -> 0 | D54: =+D55+D56+D57+D58+D59+D60+D61+D62+D63 -> 0.00 | E54: 0.00 | F54: 0.00 | G54: 0.00 | H54: 0.00 | I54: 0.00 | J54: 0.00 | K54: 0.00 | L54: 0.00 | M54: 0.00 | N54: 0.00 | P54: 0.00
A55: 2.6.1 - MOBILIARIO Y EQUIPO | B55: 8,365,039.68 | C55: 0.00 | P55: 0.00
A56: 2.6.2 - MOBILIARIO Y EQUIPO EDUCACIONAL Y RECREATIVO | B56: 0 | C56: 0.00 | P56: 0.00
A57: 2.6.3 - EQUIPO E INSTRUMENTAL, CIENTÍFICO Y LABORATORIO | B57: 11,224,816.58 | C57: 0.00 | P57: 0.00
A58: 2.6.4 - VEHÍCULOS Y EQUIPO DE TRANSPORTE, TRACCIÓN Y ELEVACIÓN | B58: 0 | C58: 0.00 | P58: 0.00
A59: 2.6.5 - MAQUINARIA, OTROS EQUIPOS Y HERRAMIENTAS | B59: 1,299,259.63 | C59: 0.00 | P59: 0.00
A60: 2.6.6 - EQUIPOS DE DEFENSA Y SEGURIDAD | B60: 0 | C60: 0.00 | P60: 0.00
A61: 2.6.7 - ACTIVOS BIÓLOGICOS CULTIVABLES | B61: 0 | C61: 0.00 | P61: 0.00
A62: 2.6.8 - BIENES INTANGIBLES | B62: 0 | C62: 0.00 | P62: 0.00
A63: 2.6.9 - EDIFICIOS, ESTRUCTURAS, TIERRAS, TERRENOS Y OBJETOS DE VALOR | B63: 0 | C63: 0.00 | P63: 0.00
A64: 2.7 - OBRAS | B64: =+B65+B66+B67+B68 -> 0 | C64: =+C65+C66+C67+C68 -> 0 | D64: 0.00 | E64: 0.00 | F64: 0.00 | G64: 0.00 | H64: 0.00 | I64: 0.00 | J64: 0.00 | K64: 0.00 | L64: 0.00 | M64: 0.00 | N64: 0.00 | O64: 0.00 | P64: 0.00
A65: 2.7.1 - OBRAS EN EDIFICACIONES | B65: 0 | C65: 0.00 | D65: 0 | E65: 0 | I65: 0 | J65: 0 | K65: 0 | L65: 0 | M65: 0 | N65: 0.00 | O65: 0.00 | P65: 0.00
A66: 2.7.2 - INFRAESTRUCTURA | B66: 0 | C66: 0.00 | D66: 0 | E66: 0 | I66: 0 | J66: 0 | K66: 0 | L66: 0 | M66: 0 | N66: 0 | O66: 0.00 | P66: 0.00
A67: 2.7.3 - CONSTRUCCIONES EN BIENES CONCESIONADOS | B67: 0 | C67: 0.00 | D67: 0 | E67: 0 | F67: 0 | G67: 0 | H67: 0 | I67: 0 | J67: 0 | K67: 0 | L67: 0 | M67: 0 | N67: 0 | O67: 0.00 | P67: 0.00
A68: 2.7.4 - GASTOS QUE SE ASIGNARÁN DURANTE EL EJERCICIO PARA INVERSIÓN (ART. 32 Y 33 LEY 423-06) | B68: 0 | C68: 0.00 | D68: 0 | E68: 0 | F68: 0 | G68: 0 | H68: 0 | I68: 0 | J68: 0 | K68: 0 | L68: 0 | M68: 0 | N68: 0 | O68: 0.00 | P68: 0.00
A69: 2.8 - ADQUISICION DE ACTIVOS FINANCIEROS CON FINES DE POLÍTICA | B69: 0 | C69: 0 | D69: =+D70+D71 -> 0.00 | E69: 0.00 | F69: 0.00 | G69: 0.00 | H69: 0.00 | I69: 0.00 | J69: 0.00 | K69: 0.00 | L69: 0.00 | M69: 0.00 | N69: 0.00 | O69: 0.00 | P69: 0.00
A70: 2.8.1 - CONCESIÓN DE PRESTAMOS | B70: 0 | C70: 0.00 | D70: 0 | E70: 0 | F70: 0 | G70: 0 | H70: 0 | I70: 0 | J70: 0 | K70: 0 | L70: 0 | M70: 0 | N70: 0 | O70: 0.00 | P70: 0.00
A71: 2.8.2 - ADQUISICIÓN DE TÍTULOS VALORES REPRESENTATIVOS DE DEUDA | B71: 0 | C71: 0.00 | D71: 0 | E71: 0 | F71: 0 | G71: 0 | H71: 0 | I71: 0 | J71: 0 | K71: 0 | L71: 0 | M71: 0 | N71: 0 | O71: 0.00 | P71: 0.00
A72: 2.9 - GASTOS FINANCIEROS | B72: 0 | C72: 0 | D72: 0.00 | E72: 0.00 | F72: 0.00 | G72: 0.00 | H72: 0.00 | I72: 0.00 | P72: =+D72+E72+F72+G72+H72+I72+J72+K72+L72+M72+N72+O72 -> 0.00
A73: 2.9.1 - INTERESES DE LA DEUDA PÚBLICA INTERNA | B73: 0 | C73: 0.00 | D73: 0 | E73: 0 | F73: 0 | G73: 0 | H73: 0 | I73: 0 | J73: 0 | K73: 0 | L73: 0 | M73: 0 | N73: 0 | O73: 0.00 | P73: =+D73+E73+F73+G73+H73+I73+J73+K73+L73+M73+N73+O73 -> 0.00
A74: 2.9.2 - INTERESES DE LA DEUDA PUBLICA EXTERNA | B74: 0 | C74: 0.00 | D74: 0 | E74: 0 | F74: 0 | G74: 0 | H74: 0 | I74: 0 | K74: 0 | L74: 0 | M74: 0 | N74: 0 | O74: 0.00 | P74: 0.00
A75: 2.9.4 - COMISIONES Y OTROS GASTOS BANCARIOS DE LA DEUDA PÚBLICA | B75: 0 | C75: 0.00 | D75: 0 | E75: 0 | F75: 0 | G75: 0 | H75: 0 | I75: 0 | J75: 0 | K75: 0 | L75: 0 | M75: 0 | N75: 0 | O75: 0.00 | P75: 0.00
A76: 4 - APLICACIONES FINANCIERAS | B76: 0 | C76: 0 | D76: 0.00 | E76: 0.00 | F76: 0.00 | G76: 0.00 | H76: 0.00 | I76: 0.00 | P76: 0.00
A77: 4.1 - INCREMENTO DE ACTIVOS FINANCIEROS | B77: 0 | C77: 0.00 | D77: 0 | E77: 0 | F77: 0 | G77: 0 | H77: 0 | I77: 0 | J77: 0 | K77: 0 | L77: 0 | M77: 0 | N77: 0 | O77: 0.00 | P77: =+D77+E77+F77+G77+H77+I77+J77+K77+L77+M77+N77+O77 -> 0.00
A78: 4.1.1 - INCREMENTO DE ACTIVOS FINANCIEROS CORRIENTES | B78: 0 | C78: 0.00 | D78: 0 | E78: 0 | F78: 0 | G78: 0 | H78: 0 | I78: 0 | J78: 0 | K78: 0 | L78: 0 | M78: 0 | N78: 0 | O78: 0.00 | P78: 0.00
A79: 4.1.2 - INCREMENTO DE ACTIVOS FINANCIEROS NO CORRIENTES | B79: 0 | C79: 0.00 | D79: 0 | E79: 0 | F79: 0 | G79: 0 | H79: 0 | I79: 0 | J79: 0 | K79: 0 | L79: 0 | M79: 0 | N79: 0 | O79: 0.00 | P79: 0.00
A80: 4.2 - DISMINUCIÓN DE PASIVOS | B80: 0 | C80: 0 | D80: 0.00 | E80: 0.00 | F80: 0.00 | G80: 0.00 | H80: 0.00 | I80: 0.00 | P80: 0.00
A81: 4.2.1 - DISMINUCIÓN DE PASIVOS CORRIENTES | B81: 0 | C81: 0.00 | D81: 0 | E81: 0 | F81: 0 | G81: 0 | H81: 0 | I81: 0 | J81: 0 | K81: 0 | L81: 0 | M81: 0 | N81: 0 | O81: 0.00 | P81: 0.00
A82: 4.2.2 - DISMINUCIÓN DE PASIVOS NO CORRIENTES | B82: 0 | C82: 0.00 | D82: 0 | E82: 0 | F82: 0 | G82: 0 | H82: 0 | I82: 0 | J82: 0 | K82: 0 | L82: 0 | M82: 0 | N82: 0 | O82: 0.00 | P82: 0.00
A83: 4.3 - DISMINUCIÓN DE FONDOS DE TERCEROS | B83: 0 | C83: 0 | D83: 0.00 | E83: 0.00 | F83: 0.00 | G83: 0.00 | H83: 0.00 | I83: 0.00 | J83: 0.00 | K83: 0.00 | L83: 0.00 | M83: 0.00 | N83: 0.00 | O83: 0.00 | P83: 0.00
A84: 4.3.5 - DISMINUCIÓN DEPÓSITOS FONDOS DE TERCEROS | C84: 0 | D84: 0 | E84: 0 | F84: 0 | G84: 0 | I84: 0 | J84: 0 | K84: 0 | L84: 0 | O84: 0.00 | P84: 0.00
A85: Total general | B85: =+B12+B18+B28+B38+B54+B64 -> 124,214,640.6 | C85: =+C12+C18+C28+C38+C54+C64 -> 0 | D85: =+D12+D18+D28+D38+D54+D64 -> 5,296,184.8 | E85: 0 | F85: 0 | G85: 0 | H85: 0 | I85: =+I12+I18+I28+I38+I54+I64 -> 0 | J85: =+J12+J18+J28+J38+J54+J64 -> 0 | K85: =+K12+K18+K28+K38+K54+K64 -> 0 | L85: =+L12+L18+L28+L38+L54+L64 -> 0 | M85: 0 | N85: 0 | O85: 0.00 | P85: =+P12+P18+P28+P38+P54+P64 -> 5,296,184.8
A86: Ingreso Presupuestado 2023 | B86: 124,674,671.4
A88: Presupuesto aprobado: Se refiere al presupuesto aprobado en la Ley de Presupuesto General del Estado.
A89: Presupuesto modificado: Se refiere al presupuesto aprobado en caso de que el Congreso Nacional apruebe un presupuesto complementario.
A90: Total devengado: Son los recursos financieros que surgen con la obligación de pago por la recepción de conformidad de obras, bienes y servicios oportunamente contratados o, en los casos de gastos sin contraprestación, por haberse cumplido los requisitos administrativos dispuestos por el reglamento de la presente Ley.
A94: Licda. Leynis Lantigua Hernández Cordinadora Financiera , SRSN II
